bitfinex-derivatives/quotes_SOLF0:USTF0_20250101
["timestamp","ask_amount","ask_price","bid_price","bid_amount"]
[1735694233094,10.98811852,191.21,191.2,180.73758245]
[1735694233307,26.69811852,191.21,191.2,180.73758245]
[1735694233502,26.69811852,191.21,191.11,286.13683083]
[1735694233503,24.07811852,191.21,191.05,16.96633526]
[1735694233689,8.36811852,191.1,191.05,16.96633526]
[1735694234097,8.36811852,191.12,191.05,25.33445378]
[1735694234400,1.04553296,191.29,191.08,8.36811852]
[1735694234693,7.24014245,191.14,191.12,8.36811852]
[1735694235600,10.69246097,191.19,191.12,8.36811852]
[1735694236297,24.80042736,191.22,191.11,2.6213]
[1735694236999,16.18965309,191.21,191.11,2.6213]
[1735694237400,16.18965309,191.21,191.13,2.621]
[1735694237801,3.08,191.22,191.13,2.621]
[1735694238100,3.08,191.22,191.14,2.6209]
[1735694238304,3.08,191.22,191.1,13.16687205]
[1735694239405,3.08,191.22,191.13,13.16687205]
[1735694239702,37.96729941,191.26,191.14,3.08]
[1735694239894,2.6195,191.25,191.16,2.6206]
[1735694240402,37.96729941,191.26,191.16,2.6206]
[1735694240599,13.16687205,191.26,191.16,2.6206]
[1735694240799,16.24687205,191.26,191.16,2.6206]
[1735694241396,2.6196,191.24,191.16,2.6206]
[1735694241602,16.24687205,191.26,191.16,2.6206]
[1735694242104,2.6195,191.25,191.16,2.6206]
[1735694242403,13.16687205,191.23,191.16,2.6206]
[1735694243505,37.87765904,191.22,191.15,1.5597]
[1735694243904,37.87765904,191.22,191.14,3.1]
[1735694244401,13.16687205,191.23,191.14,3.1]
[1735694245206,13.16687205,191.23,191.2,2.6201]
[1735694245407,2.62,191.21,191.07,1.476]
[1735694245704,13.16687205,191.2,191.09,13.16687205]
[1735694245900,13.16687205,191.2,191.16,2.6207]
[1735694246201,13.16687205,191.2,191.09,13.16687205]
[1735694247707,13.16687205,191.2,191.15,2.6208]
[1735694247908,13.16687205,191.2,191.09,13.16687205]
[1735694248301,13.16687205,191.2,191.13,2.621]
[1735694248703,2.6204,191.19,191.13,2.621]
[1735694250508,2.6204,191.18,191.13,2.621]
[1735694251605,2.6203,191.19,191.14,2.6209]
[1735694251803,13.16687205,191.2,191.1,3.1]
[1735694253203,15.78707205,191.2,191.15,2.6207]
[1735694253402,15.78707205,191.2,191.1,3.1]
[1735694254506,15.78707205,191.2,191.15,2.6207]
[1735694255702,15.78707205,191.2,191.16,2.6207]
[1735694256310,8.42737345,191.19,191.16,2.6207]
[1735694256711,8.42737345,191.19,191.12,8.42737345]
[1735694256911,8.42737345,191.19,191.14,2.6208]
[1735694257419,11.04767345,191.19,191.14,2.6208]
[1735694258504,2.6204,191.18,191.14,2.6208]
[1735694261418,24.34082736,191.18,191.14,2.6208]
[1735694263220,21.72042736,191.17,191.14,2.6208]
[1735694263416,37.19168885,191.17,191.14,2.6208]
[1735694264115,21.72042736,191.16,191.14,2.6208]
[1735694265022,21.72042736,191.15,191.14,2.6208]
[1735694265819,57.92113962,191.16,191.14,8.42737345]
[1735694266023,57.92113962,191.16,191.15,2.6208]
[1735694266522,57.92113962,191.16,191.15,11.04817345]
[1735694266825,73.39240111,191.16,191.15,11.04817345]
[1735694267627,103.02142956,191.16,191.15,11.04817345]
[1735694268128,103.02142956,191.16,191.15,2.6208]
[1735694268326,87.55016807,191.16,191.15,2.6208]
[1735694269232,103.02142956,191.16,191.15,2.6208]
[1735694270739,103.02142956,191.16,191.15,5.7208]
[1735694270740,85.32042956,191.16,191.15,5.7208]
[1735694271033,111.18263668,191.16,191.15,8.8474]
[1735694271235,111.18263668,191.16,191.15,2.6208]
[1735694271526,111.18263668,191.16,191.14,2.6209]
[1735694271935,85.32042956,191.16,191.14,2.6209]
[1735694272430,93.74780301,191.16,191.12,2.6211]
[1735694272824,161.38820828,191.15,191.12,2.6211]
[1735694273227,161.38820828,191.15,191.1,11.52737345]
[1735694273534,161.38820828,191.15,191.13,2.6211]
[1735694273734,15.47126149,191.14,191.13,2.6211]
[1735694275933,161.38820828,191.14,191.13,2.6211]
[1735694277128,37.32435915,191.14,191.13,2.6211]
[1735694278238,11.04787345,191.17,191.13,2.6211]
[1735694279535,11.04787345,191.17,191.1,8.42737345]
[1735694280231,11.04787345,191.17,191.13,2.621]
[1735694281036,1.6045,191.2,191.12,8.42737345]
[1735694281240,10.03187345,191.2,191.12,8.42737345]
[1735694282534,10.03187345,191.2,191.14,8.42737345]
[1735694282834,1.6045,191.2,191.14,8.42737345]
[1735694283040,10.03187345,191.2,191.14,8.42737345]
[1735694283442,10.03187345,191.2,191.16,2.6206]
[1735694284345,2.6203,191.19,191.15,2.6208]
[1735694284640,8.42737345,191.18,191.12,8.42737345]
[1735694284840,11.04787345,191.18,191.13,2.621]
[1735694286240,11.04787345,191.18,191.14,2.6209]
[1735694286837,2.6206,191.17,191.09,4.6454]
[1735694287036,2.6206,191.17,191.1,8.42737345]
[1735694288641,2.6206,191.17,191.13,2.621]
[1735694292043,8.42737345,191.18,191.1,8.42737345]
[1735694292940,2.6206,191.17,191.1,8.42737345]
[1735694293543,2.6206,191.17,191.12,2.6212]
[1735694294941,2.6206,191.17,191.13,2.621]
[1735694295137,2.6206,191.17,191.11,8.42737345]
[1735694295943,2.6206,191.17,191.13,2.6211]
[1735694296143,2.6207,191.16,191.13,2.6211]
[1735694296649,2.6207,191.16,191.12,2.6212]
[1735694298748,8.42737345,191.18,191.09,1.5654]
[1735694298949,1.6045,191.2,191.11,2.6213]
[1735694298950,11.04817345,191.16,191.11,2.6213]
[1735694301353,2.6208,191.15,191.11,2.6213]
[1735694301654,8.42737345,191.16,191.09,4.187]
[1735694302051,8.42737345,191.14,191.04,42.04536489]
[1735694302251,8.42737345,191.12,191.01,1.5791]
[1735694302454,8.42737345,191.12,191.04,8.42737345]
[1735694303455,8.42737345,191.12,191.06,25.622]
[1735694303456,2.6216,191.1,191.06,25.622]
[1735694303954,2.6216,191.09,191.06,25.622]
[1735694305456,2.6216,191.09,191.06,34.04937345]
[1735694306553,8.42737345,191.12,191.06,34.04937345]
[1735694306554,2.6212,191.12,191.08,11.04897345]
[1735694306758,8.42737345,191.18,191.1,8.42737345]
[1735694308462,8.42737345,191.18,191.12,2.6211]
[1735694308463,2.6208,191.16,191.12,2.6211]
[1735694308951,2.6206,191.17,191.12,2.6211]
[1735694309861,2.621,191.14,191.1,2.6214]
[1735694310056,8.42737345,191.16,191.08,9.90827345]
[1735694310257,11.50737345,191.19,191.13,8.42737345]
[1735694311563,2.6204,191.18,191.14,2.6209]
[1735694312563,11.50737345,191.21,191.15,8.42737345]
[1735694312862,8.42737345,191.19,191.13,8.42737345]
[1735694313065,2.6205,191.18,191.13,11.04837345]
[1735694313766,2.6205,191.18,191.13,8.42737345]
[1735694313963,2.6205,191.18,191.14,2.6209]
[1735694318863,11.50737345,191.19,191.13,8.42737345]
[1735694319058,2.6207,191.16,191.12,2.6211]
[1735694319662,2.6206,191.17,191.13,2.621]
[1735694331881,2.6207,191.16,191.13,2.621]
[1735694334983,8.42737345,191.16,191.08,1.4809]
[1735694335183,8.42737345,191.14,191.08,1.4809]
[1735694335380,8.42737345,191.14,191.08,9.90827345]
[1735694335586,2.6211,191.13,191.09,2.6215]
[1735694335786,2.6211,191.13,191.08,9.90827345]
[1735694337488,2.6211,191.13,191.1,2.6214]
[1735694338188,2.6211,191.13,191.08,9.90827345]
[1735694338487,2.6211,191.13,191.09,2.6216]
[1735694338882,2.6214,191.11,191.08,1.4809]
[1735694340791,2.6214,191.11,191.08,4.1026]
[1735694341487,2.6214,191.11,191.08,2.6217]
[1735694341693,8.42737345,191.12,191.06,31.42737345]
[1735694342493,8.42737345,191.1,191.06,23.0]
[1735694342993,2.6218,191.08,191.06,23.0]
[1735694344689,3.08,191.09,191.06,23.0]
[1735694344886,3.08,191.15,191.08,8.42737345]
[1735694345094,3.08,191.15,191.1,8.42737345]
[1735694345291,34.49017111,191.18,191.13,2.621]
[1735694345492,3.08,191.17,191.13,2.621]
[1735694345692,3.08,191.17,191.1,8.42737345]
[1735694345988,2.621,191.14,191.09,8.42737345]
[1735694346590,8.42737345,191.16,191.09,2.6216]
[1735694346791,8.42737345,191.14,191.09,2.6216]
[1735694347287,8.42737345,191.14,191.07,3.07]
[1735694347498,8.42737345,191.12,191.06,23.0]
[1735694347792,3.08,191.11,191.06,23.0]
[1735694348383,2.6215,191.1,191.06,23.0]
[1735694348691,3.08,191.11,191.06,23.0]
[1735694349088,5.7014,191.11,191.07,2.6218]
[1735694349288,14.12877345,191.11,191.07,2.6218]
[1735694350492,2.6215,191.1,191.06,25.622]
[1735694352589,14.12877345,191.11,191.06,25.622]
[1735694352791,14.12877345,191.11,191.06,23.0]
[1735694353093,14.12877345,191.11,191.07,2.6219]
[1735694353395,11.50737345,191.11,191.06,23.0]
[1735694353590,2.6215,191.1,191.06,25.622]
[1735694357999,3.08,191.11,191.07,2.6218]
[1735694358601,5.7014,191.11,191.07,2.6218]
[1735694360396,23.44229766,191.18,191.09,2.6215]
[1735694360397,2.621,191.14,191.09,2.6215]
[1735694360602,3.08,191.16,191.08,8.42737345]
[1735694361596,3.08,191.16,191.1,8.42737345]
[1735694361901,11.50737345,191.17,191.1,8.42737345]
[1735694362404,2.6207,191.16,191.12,2.6212]
[1735694365899,8.42737345,191.17,191.12,8.42737345]
[1735694366095,3.08,191.19,191.14,8.42737345]
[1735694366299,11.50737345,191.2,191.14,8.42737345]
[1735694367100,8.42737345,191.2,191.14,8.42737345]
[1735694368503,2.6202,191.19,191.15,2.6208]
[1735694371200,2.6202,191.19,191.14,8.42737345]
[1735694371406,8.42737345,191.16,191.09,8.42737345]
[1735694371902,2.6208,191.15,191.11,11.04857345]
[1735694372107,2.6208,191.15,191.11,8.42737345]
[1735694373109,2.6208,191.15,191.11,11.04867345]
[1735694373709,2.6208,191.15,191.11,2.6213]
[1735694373909,2.6209,191.14,191.11,2.6213]
[1735694374211,8.42737345,191.16,191.11,2.6213]
[1735694374911,2.6208,191.15,191.11,2.6213]
[1735694376810,2.6208,191.15,191.12,2.6212]
[1735694380307,8.42737345,191.16,191.12,2.6212]
[1735694380608,11.04807345,191.16,191.12,2.6212]
[1735694390617,11.04807345,191.16,191.13,2.621]
[1735694391722,8.42737345,191.14,191.07,11.46257345]
[1735694392118,8.42737345,191.14,191.07,3.0352]
[1735694392419,2.6214,191.11,191.07,3.0352]
[1735694392619,8.42737345,191.12,191.06,31.42737345]
[1735694393215,2.6215,191.1,191.06,25.622]
[1735694393518,8.42737345,191.12,191.06,31.42737345]
[1735694394021,2.6214,191.11,191.08,2.6217]
[1735694394221,8.42737345,191.12,191.08,2.6217]
[1735694395619,11.04857345,191.12,191.08,2.6217]
[1735694395820,2.6212,191.12,191.08,2.6217]
[1735694396022,1.5058,191.15,191.08,8.42737345]
[1735694396222,9.93317345,191.15,191.08,8.42737345]
[1735694396919,9.93317345,191.15,191.08,11.04897345]
[1735694396920,2.6212,191.13,191.08,11.04897345]
[1735694398724,2.6209,191.14,191.1,2.6215]
[1735694401115,23.44359766,191.19,191.13,8.42737345]
[1735694401116,3.08,191.18,191.13,8.42737345]
[1735694401521,2.6207,191.16,191.06,26.08]
[1735694401717,11.50737345,191.16,191.09,8.42737345]
[1735694402325,2.621,191.14,191.1,2.6214]
[1735694402830,11.50737345,191.16,191.09,8.42737345]
[1735694403026,2.6209,191.14,191.1,2.6214]
[1735694403428,11.50737345,191.16,191.1,2.6214]
[1735694403623,2.6211,191.13,191.1,2.6214]
[1735694403927,11.50737345,191.16,191.11,2.6212]
[1735694404334,11.50737345,191.16,191.09,8.42737345]
[1735694405229,2.6209,191.14,191.1,2.6214]
[1735694405522,2.6209,191.14,191.09,8.42737345]
[1735694406421,5.7007,191.16,191.11,8.42737345]
[1735694407531,5.7007,191.16,191.13,2.621]
[1735694407931,11.04737345,191.21,191.15,8.42737345]
[1735694408127,8.42737345,191.21,191.17,2.6205]
[1735694408734,3.08,191.22,191.17,2.6205]
[1735694408934,11.50737345,191.22,191.17,2.6205]
[1735694409129,1.5081,191.23,191.17,2.6205]
[1735694409434,2.6201,191.21,191.17,2.6205]
[1735694418737,11.04747345,191.21,191.17,2.6205]
[1735694418941,11.04747345,191.21,191.15,25.6207]
[1735694418942,8.42737345,191.21,191.15,25.6207]
[1735694419337,8.42737345,191.19,191.15,23.0]
[1735694420038,2.6204,191.18,191.15,23.0]
[1735694420737,2.6204,191.18,191.15,25.6207]
[1735694421936,11.04767345,191.19,191.15,25.6207]
[1735694422336,2.6203,191.19,191.15,25.6207]
[1735694422736,2.6203,191.19,191.16,2.6206]
[1735694426147,11.50737345,191.22,191.17,2.6205]
[1735694426647,3.08,191.22,191.17,2.6205]
[1735694426836,3.08,191.22,191.18,2.6203]
[1735694427542,9.52270619,191.27,191.21,8.42737345]
[1735694427742,8.42737345,191.27,191.21,8.42737345]
[1735694428345,8.42737345,191.25,191.19,23.0]
[1735694428643,8.42737345,191.23,191.19,23.0]
[1735694428941,2.6198,191.22,191.19,23.0]
[1735694430446,2.6198,191.22,191.19,25.6202]
[1735694430642,12.58950264,191.28,191.19,23.0]
[1735694430842,8.42737345,191.26,191.19,23.0]
[1735694431145,2.6195,191.25,191.21,2.6198]
[1735694431640,8.42737345,191.26,191.19,23.0]
[1735694431842,8.42737345,191.26,191.2,2.6201]
[1735694433650,3.08,191.28,191.2,2.6201]
[1735694433844,8.42737345,191.25,191.2,2.6201]
[1735694434844,2.6196,191.24,191.2,2.6201]
[1735694437344,2.6198,191.22,191.19,23.0]
[1735694437651,11.50737345,191.23,191.19,23.0]
[1735694437840,2.6201,191.2,191.19,23.0]
[1735694438847,2.6201,191.2,191.19,1.2816]
[1735694440349,2.6205,191.18,191.13,2.621]
[1735694440547,14.12787345,191.18,191.13,2.621]
[1735694440948,3.08,191.18,191.16,2.6205]
[1735694442353,3.08,191.18,191.14,2.6209]
[1735694442549,3.08,191.18,191.13,8.42737345]
[1735694442951,3.08,191.18,191.16,2.6206]
[1735694443252,3.08,191.18,191.13,8.42737345]
[1735694444242,3.08,191.18,191.16,2.6205]
[1735694447049,3.08,191.18,191.13,8.42737345]
[1735694447356,8.42737345,191.2,191.16,2.6206]
[1735694448556,11.04747345,191.2,191.16,2.6206]
[1735694450554,8.42737345,191.2,191.15,8.42737345]
[1735694450759,3.08,191.21,191.18,2.6203]
[1735694450960,3.08,191.21,191.15,8.42737345]
[1735694452059,3.08,191.21,191.17,2.6205]
[1735694452855,3.08,191.21,191.15,8.42737345]
[1735694453060,2.6201,191.2,191.16,2.6206]
[1735694455361,8.42737345,191.2,191.13,8.42737345]
[1735694455556,8.42737345,191.18,191.11,8.42737345]
[1735694455960,2.6207,191.16,191.13,2.6211]
[1735694457161,8.42737345,191.18,191.11,8.42737345]
[1735694457461,2.6207,191.16,191.12,2.6212]
[1735694458065,2.6207,191.16,191.11,11.04867345]
[1735694458262,8.42737345,191.18,191.11,11.04867345]
[1735694458263,8.42737345,191.18,191.11,8.42737345]
[1735694458959,2.6205,191.17,191.13,2.6209]
[1735694459163,8.42737345,191.2,191.13,8.42737345]
[1735694461058,2.6203,191.19,191.15,2.6207]
[1735694462255,5.7001,191.21,191.17,2.6204]
[1735694462566,2.6201,191.21,191.17,2.6204]
[1735694462765,3.08,191.22,191.16,1.4776]
[1735694462965,2.62,191.21,191.17,2.6205]
[1735694463268,8.42737345,191.21,191.16,1.4776]
[1735694463476,3.08,191.22,191.17,2.6205]
[1735694463477,5.7,191.22,191.17,2.6205]
[1735694464155,5.7,191.22,191.19,2.6202]
[1735694464361,3.08,191.22,191.19,2.6202]
[1735694470168,5.6998,191.22,191.19,2.6202]
[1735694472468,5.6998,191.22,191.18,2.6203]
[1735694472663,2.6198,191.22,191.16,9.90497345]
[1735694472868,3.08,191.23,191.16,9.90497345]
[1735694473070,2.6201,191.21,191.18,2.6203]
[1735694475066,8.42737345,191.22,191.16,1.4776]
[1735694475271,3.08,191.23,191.12,8.42737345]
[1735694475272,8.42737345,191.2,191.12,8.42737345]
[1735694475775,2.6205,191.18,191.14,2.6208]
[1735694475976,2.6205,191.18,191.12,8.42737345]
[1735694476679,2.6202,191.2,191.14,8.42737345]
[1735694476976,2.6202,191.2,191.16,8.42737345]
[1735694477272,2.62,191.21,191.16,8.42737345]
[1735694478076,8.42737345,191.22,191.16,8.42737345]
[1735694478276,11.04727345,191.22,191.19,2.6202]
[1735694478477,2.6199,191.22,191.19,2.6202]
[1735694478781,5.6997,191.23,191.2,2.62]
[1735694479483,2.6197,191.23,191.2,2.62]
[1735694480981,11.04697345,191.24,191.2,2.62]
[1735694481179,11.04697345,191.24,191.18,9.92847345]
[1735694481385,11.04697345,191.24,191.21,2.6199]
[1735694482981,8.42737345,191.24,191.21,2.6199]
[1735694483187,5.6994,191.25,191.21,2.6199]
[1735694484884,2.6194,191.25,191.21,2.6199]
[1735694486285,2.6194,191.25,191.18,9.92847345]
[1735694486487,8.42737345,191.28,191.2,8.42737345]
[1735694486788,8.42737345,191.28,191.22,8.42737345]
[1735694486988,38.81457983,191.34,191.25,2.6194]
[1735694487185,11.04637345,191.29,191.25,2.6194]
[1735694487386,8.42737345,191.29,191.25,2.6194]
[1735694488490,3.08,191.3,191.25,2.6194]
[1735694488692,11.50737345,191.3,191.26,2.6193]
[1735694490085,1.5459,191.36,191.24,8.42737345]
[1735694490291,11.28930985,191.37,191.28,8.42737345]
[1735694490486,11.50737345,191.35,191.28,8.42737345]
[1735694490695,8.42737345,191.35,191.28,8.42737345]
[1735694491386,2.6183,191.33,191.29,2.6188]
[1735694492183,11.04567345,191.33,191.29,2.6188]
[1735694493202,2.6185,191.32,191.28,2.619]
[1735694493487,8.42737345,191.31,191.26,1.588]
[1735694493694,2.619,191.28,191.24,2.6195]
[1735694494492,8.42737345,191.29,191.24,2.6195]
[1735694494692,2.6192,191.27,191.24,2.6195]
[1735694495489,2.6192,191.27,191.19,3.08]
[1735694495490,8.42737345,191.27,191.19,8.42737345]
[1735694495686,8.42737345,191.25,191.19,8.42737345]
[1735694496089,2.6196,191.24,191.2,2.6201]
[1735694498191,11.04667345,191.27,191.23,2.6197]
[1735694498394,8.42737345,191.27,191.21,8.42737345]
[1735694499392,2.6194,191.25,191.22,2.6198]
[1735694499593,2.6194,191.25,191.21,8.42737345]
[1735694499998,8.42737345,191.27,191.22,2.6198]
[1735694500299,2.6193,191.26,191.22,2.6198]
[1735694503596,8.42737345,191.29,191.21,8.42737345]
[1735694504400,8.42737345,191.27,191.21,8.42737345]
[1735694504595,8.42737345,191.27,191.19,8.42737345]
[1735694504791,8.42737345,191.23,191.15,4.6058]
[1735694505095,8.42737345,191.21,191.15,13.03317345]
[1735694505295,2.6203,191.19,191.15,5.7325]
[1735694507798,2.6203,191.19,191.14,2.6209]
[1735694507799,2.6204,191.18,191.14,2.6209]
[1735694508105,3.08,191.22,191.1,1.5386]
[1735694508106,8.42737345,191.17,191.11,8.42737345]
[1735694508493,14.12787345,191.17,191.13,2.621]
[1735694509708,5.7005,191.17,191.13,2.621]
[1735694510605,3.08,191.21,191.15,8.42737345]
[1735694511097,5.7,191.21,191.17,2.6204]
[1735694511302,3.08,191.21,191.17,2.6204]
[1735694511904,3.08,191.21,191.18,2.6204]
[1735694513203,11.50737345,191.21,191.18,2.6204]
[1735694513404,14.12737345,191.21,191.17,2.6205]
[1735694515306,11.04697345,191.24,191.2,2.6201]
[1735694515599,11.04697345,191.24,191.19,8.42737345]
[1735694515901,14.10697345,191.24,191.19,8.42737345]
[1735694516099,14.10697345,191.24,191.21,2.6199]
[1735694516300,5.6796,191.24,191.21,2.6199]
[1735694517004,5.6796,191.24,191.2,2.6201]
[1735694518905,3.06,191.24,191.2,2.6201]
[1735694519108,2.6197,191.23,191.2,2.6201]
[1735694519602,2.6197,191.23,191.19,11.04747345]
[1735694520003,87.35309715,191.34,191.19,8.42737345]
[1735694520206,87.35309715,191.34,191.24,2.6195]
[1735694520207,2.6191,191.28,191.24,2.6195]
[1735694523109,5.6791,191.28,191.24,2.6195]
[1735694523411,2.6191,191.27,191.22,8.42737345]
[1735694523911,3.06,191.28,191.22,8.42737345]
[1735694524109,3.06,191.28,191.25,2.6194]
[1735694524311,8.42737345,191.27,191.23,1.4992]
[1735694524505,2.6197,191.24,191.19,9.96367345]
[1735694525613,2.6197,191.24,191.2,2.6201]
[1735694528706,2.6197,191.23,191.19,12.58387345]
[1735694529102,8.42737345,191.25,191.19,8.42737345]
[1735694530413,2.6199,191.22,191.19,8.42737345]
[1735694532814,2.6196,191.24,191.2,2.6201]
[1735694533017,11.48737345,191.26,191.2,2.6201]
[1735694533612,3.06,191.27,191.21,8.42737345]
[1735694533807,3.06,191.27,191.23,8.42737345]
[1735694534010,11.48737345,191.27,191.15,4.5592]
[1735694534215,2.6199,191.22,191.2,8.42737345]
[1735694536817,11.48737345,191.27,191.2,11.04747345]
[1735694537017,3.06,191.26,191.2,11.04747345]
[1735694537419,2.6196,191.24,191.2,11.04747345]
[1735694540016,2.6196,191.24,191.2,8.42737345]
[1735694540223,2.6196,191.24,191.21,2.6199]
[1735694541122,2.6196,191.24,191.2,11.04747345]
[1735694541519,5.6793,191.26,191.2,8.42737345]
[1735694542413,5.6791,191.27,191.23,2.6196]
[1735694543626,8.42737345,191.28,191.24,8.42737345]
[1735694543627,2.619,191.28,191.24,8.42737345]
[1735694543816,11.48737345,191.3,191.24,8.42737345]
[1735694544225,11.48737345,191.3,191.21,8.42737345]
[1735694544226,2.6194,191.26,191.21,8.42737345]
[1735694545021,2.6194,191.26,191.22,2.6197]
[1735694545415,2.6194,191.26,191.21,8.42737345]
[1735694545416,8.42737345,191.28,191.21,8.42737345]
[1735694545618,8.42737345,191.26,191.19,8.42737345]
[1735694547518,2.6196,191.24,191.21,2.6199]
[1735694548923,2.6196,191.24,191.21,11.04727345]
[1735694549626,3.06,191.27,191.21,8.42737345]
[1735694549921,2.6194,191.25,191.22,2.6198]
[1735694551726,5.6793,191.27,191.23,2.6196]
[1735694552027,5.6793,191.27,191.21,8.42737345]
[1735694552228,5.6793,191.27,191.22,1.5143]
[1735694552526,2.6193,191.27,191.22,1.5143]
[1735694553422,2.6193,191.27,191.24,2.6195]
[1735694553618,3.06,191.29,191.23,8.42737345]
[1735694553930,5.6789,191.29,191.23,8.42737345]
[1735694554731,5.6789,191.29,191.25,2.6193]
[1735694558029,2.6189,191.29,191.25,2.6193]
[1735694559028,11.48737345,191.3,191.22,3.0657]
[1735694559029,3.06,191.3,191.22,3.0657]
[1735694559235,3.06,191.31,191.28,2.619]
[1735694559438,3.06,191.32,191.28,2.619]
[1735694560439,2.6186,191.31,191.28,2.619]
[1735694561134,3.06,191.32,191.28,2.619]
[1735694561344,2.6184,191.32,191.28,2.619]
[1735694563940,2.6183,191.34,191.3,2.6187]
[1735694566445,2.6181,191.35,191.31,2.6185]
[1735694568137,2.6181,191.35,191.3,2.6187]
[1735694568337,8.42737345,191.34,191.27,8.42737345]
[1735694569349,8.42737345,191.34,191.27,11.04637345]
[1735694570146,8.42737345,191.34,191.28,2.6189]
[1735694572352,8.42737345,191.34,191.3,2.6187]
[1735694572551,8.42737345,191.36,191.29,8.42737345]
[1735694572850,2.618,191.36,191.32,2.6183]
[1735694573047,3.06,191.37,191.32,2.6183]
[1735694573246,3.06,191.37,191.31,8.42737345]
[1735694574452,2.618,191.35,191.31,11.04597345]
[1735694576851,2.6183,191.34,191.31,8.42737345]
[1735694577054,8.42737345,191.36,191.29,8.42737345]
[1735694577861,2.6183,191.33,191.29,11.04617345]
[1735694579552,8.42737345,191.36,191.29,8.42737345]
[1735694579752,8.42737345,191.34,191.22,6.1257]
[1735694579958,8.42737345,191.32,191.26,8.42737345]
[1735694580152,3.06,191.31,191.26,8.42737345]
[1735694581560,2.6189,191.29,191.26,8.42737345]
[1735694582152,2.6192,191.27,191.23,2.6196]
[1735694582448,2.6192,191.27,191.24,8.42737345]
[1735694583050,2.6192,191.27,191.24,11.04687345]
[1735694589363,2.6192,191.27,191.26,8.42737345]
[1735694591158,2.6192,191.27,191.24,2.6195]
[1735694591364,2.6192,191.27,191.26,8.42737345]
[1735694591754,2.6192,191.27,191.24,2.6195]
[1735694591957,3.06,191.31,191.24,2.6195]
[1735694591958,2.619,191.28,191.26,8.42737345]
[1735694594563,2.6189,191.29,191.26,8.42737345]
[1735694599966,2.6189,191.28,191.26,8.42737345]
[1735694600662,2.619,191.27,191.26,8.42737345]
[1735694601765,2.6193,191.25,191.22,1.5143]
[1735694602267,8.42737345,191.28,191.22,1.5143]
[1735694602468,2.6195,191.24,191.22,1.5143]
[1735694602968,2.6196,191.23,191.21,8.42737345]
[1735694603360,3.06,191.26,191.21,8.42737345]
[1735694603567,2.6193,191.25,191.22,2.6197]
[1735694603763,2.6193,191.25,191.22,11.04707345]
[1735694604571,2.6193,191.25,191.22,2.6197]
[1735694604769,2.6193,191.25,191.21,2.6198]
[1735694604970,2.6193,191.25,191.21,11.04717345]
[1735694605572,2.6193,191.25,191.21,2.6198]
[1735694605769,2.6193,191.25,191.22,8.42737345]
[1735694606162,2.6193,191.25,191.21,2.6198]
[1735694606367,2.6193,191.25,191.22,8.42737345]
[1735694606868,2.6193,191.25,191.21,2.6198]
[1735694607069,2.6193,191.25,191.21,11.04717345]
[1735694607775,2.6193,191.25,191.22,2.6196]
[1735694608569,2.6193,191.25,191.22,11.04697345]
[1735694611977,2.6193,191.25,191.22,2.6196]
[1735694612579,2.6193,191.25,191.2,2.6199]
[1735694612775,2.6193,191.25,191.2,8.42737345]
[1735694613179,2.6193,191.25,191.21,2.6197]
[1735694613674,5.6791,191.26,191.22,11.04687345]
[1735694613879,3.06,191.26,191.22,11.04687345]
[1735694614883,3.06,191.26,191.21,8.42737345]
[1735694615081,2.6195,191.24,191.21,8.42737345]
[1735694615481,11.48737345,191.26,191.19,2.6199]
[1735694616084,11.48737345,191.26,191.18,8.42737345]
[1735694616380,2.6197,191.22,191.18,11.04757345]
[1735694620278,8.42737345,191.24,191.16,30.51281917]
[1735694620480,8.42737345,191.18,191.15,1.5823]
[1735694620680,2.6208,191.14,191.07,29.11769904]
[1735694620983,2.6208,191.14,191.09,8.42737345]
[1735694621379,3.06,191.15,191.09,8.42737345]
[1735694621585,5.6806,191.15,191.09,11.04877345]
[1735694623276,2.6209,191.13,191.07,4.1746]
[1735694623478,2.6209,191.13,191.07,12.60197345]